[Event "Titled Tuesday Blitz October 11 Late 2022"]
[White "Bjelobrk, Igor"]
[Black "Meduri, Aakaash"]
[WhiteFideId "4300726"]
[BlackFideId "2032252"]
[WhiteElo "2335"]
[BlackElo "2113"]
[Result "1-0"]
[Round "05"]
[TimeControl "180+1"]
[Date "2022.10.12"]
[WhiteClock "0:00:04"]
[BlackClock "0:00:06"]

1. Nf3 {[%clk 0:03:00]}  d5 {[%clk 0:02:56]} 2. g3 {[%clk 0:03:00]}  Nc6 {[%clk 0:02:53]} 3. d4 {[%clk 0:02:59]}  Bf5 {[%clk 0:02:53]} 4. Bg2 {[%clk 0:02:57]}  Nb4 {[%clk 0:02:51]} 5. Na3 {[%clk 0:02:56]}  e6 {[%clk 0:02:49]} 6. O-O {[%clk 0:02:55]}  Be7 {[%clk 0:02:38]} 7. Ne5 {[%clk 0:02:54]}  a5 {[%clk 0:02:31]} 8. c3 {[%clk 0:02:50]}  Na6 {[%clk 0:02:31]} 9. Qb3 {[%clk 0:02:43]}  Rb8 {[%clk 0:02:27]} 10. Qb5+ {[%clk 0:02:35]}  c6 {[%clk 0:02:25]} 11. Nxc6 {[%clk 0:02:33]}  bxc6 {[%clk 0:02:23]} 12. Qxa6 {[%clk 0:02:32]}  Nf6 {[%clk 0:01:57]} 13. Qxc6+ {[%clk 0:02:30]}  Nd7 {[%clk 0:01:56]} 14. Qa4 {[%clk 0:02:18]}  O-O {[%clk 0:01:53]} 15. Qd1 {[%clk 0:02:18]}  Qc8 {[%clk 0:01:43]} 16. Nc2 {[%clk 0:02:07]}  Nf6 {[%clk 0:01:33]} 17. Ne1 {[%clk 0:02:07]}  Qc4 {[%clk 0:01:28]} 18. Nd3 {[%clk 0:02:05]}  Rfc8 {[%clk 0:01:23]} 19. f3 {[%clk 0:02:01]}  h6 {[%clk 0:01:21]} 20. Re1 {[%clk 0:01:59]}  Bh7 {[%clk 0:01:18]} 21. Ne5 {[%clk 0:01:56]}  Qb5 {[%clk 0:01:15]} 22. a4 {[%clk 0:01:53]}  Qb6 {[%clk 0:01:10]} 23. e4 {[%clk 0:01:51]}  Rb7 {[%clk 0:01:06]} 24. Kh1 {[%clk 0:01:50]}  Bd6 {[%clk 0:00:58]} 25. Nd3 {[%clk 0:01:40]}  Be7 {[%clk 0:00:52]} 26. Bf4 {[%clk 0:01:35]}  Rc4 {[%clk 0:00:50]} 27. Re2 {[%clk 0:01:32]}  Qd8 {[%clk 0:00:43]} 28. Ne5 {[%clk 0:01:28]}  Rc8 {[%clk 0:00:41]} 29. Qc2 {[%clk 0:01:17]}  dxe4 {[%clk 0:00:35]} 30. fxe4 {[%clk 0:01:17]}  Nd5 {[%clk 0:00:35]} 31. Bd2 {[%clk 0:01:10]}  Bf6 {[%clk 0:00:30]} 32. Nf3 {[%clk 0:01:02]}  Nb6 {[%clk 0:00:28]} 33. Qd3 {[%clk 0:00:57]}  Nc4 {[%clk 0:00:25]} 34. Bc1 {[%clk 0:00:57]}  Qb6 {[%clk 0:00:17]} 35. Qd1 {[%clk 0:00:56]}  Qa6 {[%clk 0:00:16]} 36. e5 {[%clk 0:00:56]}  Be7 {[%clk 0:00:15]} 37. Ra2 {[%clk 0:00:52]}  Rd7 {[%clk 0:00:15]} 38. Nd2 {[%clk 0:00:49]}  Nb6 {[%clk 0:00:12]} 39. Ne4 {[%clk 0:00:44]}  Qc4 {[%clk 0:00:12]} 40. Ra1 {[%clk 0:00:42]}  Nd5 {[%clk 0:00:10]} 41. Qe1 {[%clk 0:00:42]}  Qb3 {[%clk 0:00:09]} 42. Bf3 {[%clk 0:00:39]}  Rb8 {[%clk 0:00:08]} 43. Kg2 {[%clk 0:00:39]}  Nb6 {[%clk 0:00:08]} 44. Rf2 {[%clk 0:00:34]}  Qc4 {[%clk 0:00:06]} 45. Qd1 {[%clk 0:00:31]}  Bf8 {[%clk 0:00:05]} 46. h4 {[%clk 0:00:27]}  Nd5 {[%clk 0:00:04]} 47. Bxh6 {[%clk 0:00:26]}  gxh6 {[%clk 0:00:04]} 48. Nf6+ {[%clk 0:00:25]}  Nxf6 {[%clk 0:00:04]} 49. exf6 {[%clk 0:00:26]}  Qc7 {[%clk 0:00:03]} 50. Qe2 {[%clk 0:00:24]}  Kh8 {[%clk 0:00:03]} 51. Be4 {[%clk 0:00:24]}  Bd6 {[%clk 0:00:04]} 52. Bxh7 {[%clk 0:00:24]}  Kxh7 {[%clk 0:00:04]} 53. Qe4+ {[%clk 0:00:22]}  Kh8 {[%clk 0:00:05]} 54. Qg4 {[%clk 0:00:22]}  Rg8 {[%clk 0:00:04]} 55. Qh5 {[%clk 0:00:21]}  Rxg3+ {[%clk 0:00:05]} 56. Kf1 {[%clk 0:00:21]}  Rg6 {[%clk 0:00:05]} 57. Re1 {[%clk 0:00:20]}  Bg3 {[%clk 0:00:05]} 58. Rxe6 {[%clk 0:00:18]}  Bxf2 {[%clk 0:00:03]} 59. Re8+ {[%clk 0:00:15]}  Kh7 {[%clk 0:00:04]} 60. Qf3 {[%clk 0:00:07]}  Qh2 {[%clk 0:00:04]} 61. Qa8 {[%clk 0:00:06]}  Qg1+ {[%clk 0:00:05]} 62. Ke2 {[%clk 0:00:06]}  Qe1+ {[%clk 0:00:05]} 63. Kd3 {[%clk 0:00:07]}  Qf1+ {[%clk 0:00:06]} 64. Kc2 {[%clk 0:00:07]}  Rxf6 {[%clk 0:00:06]} 65. Rh8+ {[%clk 0:00:06]}  Kg6 {[%clk 0:00:07]} 66. Qe4+ {[%clk 0:00:06]}  Kh5 {[%clk 0:00:06]} 67. Rg8 {[%clk 0:00:05]}  Bxh4 {[%clk 0:00:06]} 68. Qg4# {[%clk 0:00:04]} 1-0


[Site "https://www.chess.com"]

[Event "Titled Tuesday Blitz October 11 Late 2022"]
[White "Bogaudinov, Rushan"]
[Black "P., Komal Kishore"]
[WhiteFideId "4129288"]
[BlackFideId "5016703"]
[WhiteElo "1945"]
[BlackElo "2117"]
[Result "1-0"]
[Round "05"]
[TimeControl "180+1"]
[Date "2022.10.12"]
[WhiteClock "0:00:20"]
[BlackClock "0:00:01"]

1. d4 {[%clk 0:01:57]}  d5 {[%clk 0:02:57]} 2. Nf3 {[%clk 0:01:57]}  Nf6 {[%clk 0:02:47]} 3. e3 {[%clk 0:01:57]}  Bg4 {[%clk 0:02:44]} 4. Be2 {[%clk 0:01:58]}  e6 {[%clk 0:02:44]} 5. c4 {[%clk 0:01:58]}  c6 {[%clk 0:02:43]} 6. Nc3 {[%clk 0:01:59]}  Nbd7 {[%clk 0:02:41]} 7. h3 {[%clk 0:01:59]}  Bh5 {[%clk 0:02:40]} 8. O-O {[%clk 0:01:58]}  Be7 {[%clk 0:02:36]} 9. b3 {[%clk 0:01:56]}  O-O {[%clk 0:02:36]} 10. Bb2 {[%clk 0:01:57]}  Re8 {[%clk 0:02:32]} 11. Ne5 {[%clk 0:01:57]}  Bxe2 {[%clk 0:02:27]} 12. Qxe2 {[%clk 0:01:58]}  Nxe5 {[%clk 0:02:27]} 13. dxe5 {[%clk 0:01:58]}  Nd7 {[%clk 0:02:28]} 14. f4 {[%clk 0:01:58]}  dxc4 {[%clk 0:02:22]} 15. bxc4 {[%clk 0:01:55]}  Bb4 {[%clk 0:01:32]} 16. Ne4 {[%clk 0:01:53]}  a5 {[%clk 0:01:29]} 17. Rfd1 {[%clk 0:01:52]}  Qc7 {[%clk 0:01:26]} 18. a3 {[%clk 0:01:44]}  Bf8 {[%clk 0:01:25]} 19. Rab1 {[%clk 0:01:39]}  Red8 {[%clk 0:01:23]} 20. Bd4 {[%clk 0:01:37]}  b6 {[%clk 0:01:19]} 21. Rdc1 {[%clk 0:01:29]}  Bxa3 {[%clk 0:01:19]} 22. Rf1 {[%clk 0:01:28]}  Bf8 {[%clk 0:01:17]} 23. h4 {[%clk 0:01:25]}  Nc5 {[%clk 0:00:58]} 24. Bxc5 {[%clk 0:01:19]}  Bxc5 {[%clk 0:00:58]} 25. Kh2 {[%clk 0:01:09]}  Rdb8 {[%clk 0:00:51]} 26. h5 {[%clk 0:01:07]}  h6 {[%clk 0:00:50]} 27. g4 {[%clk 0:01:04]}  Be7 {[%clk 0:00:49]} 28. Rg1 {[%clk 0:01:01]}  f6 {[%clk 0:00:44]} 29. exf6 {[%clk 0:00:55]}  gxf6 {[%clk 0:00:44]} 30. Qc2 {[%clk 0:00:40]}  Kg7 {[%clk 0:00:38]} 31. Ng3 {[%clk 0:00:40]}  Rd8 {[%clk 0:00:11]} 32. Qg6+ {[%clk 0:00:38]}  Kf8 {[%clk 0:00:12]} 33. Qxh6+ {[%clk 0:00:32]}  Kf7 {[%clk 0:00:11]} 34. Qg6+ {[%clk 0:00:27]}  Kf8 {[%clk 0:00:10]} 35. h6 {[%clk 0:00:26]}  Rd2+ {[%clk 0:00:09]} 36. Kh3 {[%clk 0:00:25]}  Bd6 {[%clk 0:00:02]} 37. Qxf6+ {[%clk 0:00:24]}  Kg8 {[%clk 0:00:01]} 38. Ne4 {[%clk 0:00:20]} 1-0


[Site "https://www.chess.com"]

[Event "Titled Tuesday Blitz October 11 Late 2022"]
[White "Buchenau, Frank"]
[Black "Joubert, Dantelle"]
[WhiteFideId "4604350"]
[BlackFideId "14310813"]
[WhiteElo "2157"]
[BlackElo "1507"]
[Result "0-1"]
[Round "05"]
[TimeControl "180+1"]
[Date "2022.10.12"]
[WhiteClock "0:00:11"]
[BlackClock "0:00:26"]

1. e4 {[%clk 0:03:00]}  e5 {[%clk 0:02:51]} 2. Bc4 {[%clk 0:03:00]}  Nc6 {[%clk 0:02:48]} 3. Nf3 {[%clk 0:02:59]}  Bc5 {[%clk 0:02:48]} 4. c3 {[%clk 0:02:59]}  Nf6 {[%clk 0:02:47]} 5. d3 {[%clk 0:02:59]}  d6 {[%clk 0:02:46]} 6. O-O {[%clk 0:02:59]}  a6 {[%clk 0:02:46]} 7. a4 {[%clk 0:02:58]}  Ba7 {[%clk 0:02:45]} 8. Nbd2 {[%clk 0:02:57]}  O-O {[%clk 0:02:45]} 9. h3 {[%clk 0:02:57]}  Be6 {[%clk 0:02:36]} 10. Bxe6 {[%clk 0:02:56]}  fxe6 {[%clk 0:02:36]} 11. b4 {[%clk 0:02:54]}  Nh5 {[%clk 0:02:32]} 12. b5 {[%clk 0:02:25]}  axb5 {[%clk 0:02:29]} 13. axb5 {[%clk 0:02:25]}  Ne7 {[%clk 0:02:28]} 14. d4 {[%clk 0:02:17]}  exd4 {[%clk 0:02:23]} 15. cxd4 {[%clk 0:02:17]}  Nf4 {[%clk 0:02:18]} 16. Nc4 {[%clk 0:02:11]}  Neg6 {[%clk 0:02:07]} 17. Kh2 {[%clk 0:02:03]}  Qf6 {[%clk 0:01:57]} 18. Be3 {[%clk 0:01:52]}  Nh4 {[%clk 0:01:24]} 19. Bxf4 {[%clk 0:01:32]}  Qxf4+ {[%clk 0:01:20]} 20. Kh1 {[%clk 0:01:15]}  Nxf3 {[%clk 0:01:20]} 21. Qxf3 {[%clk 0:01:15]}  Qxf3 {[%clk 0:01:18]} 22. gxf3 {[%clk 0:01:15]}  Bxd4 {[%clk 0:01:18]} 23. Rxa8 {[%clk 0:01:12]}  Rxa8 {[%clk 0:01:18]} 24. b6 {[%clk 0:01:05]}  d5 {[%clk 0:01:06]} 25. Rd1 {[%clk 0:00:54]}  Bxf2 {[%clk 0:00:48]} 26. bxc7 {[%clk 0:00:45]}  Rc8 {[%clk 0:00:44]} 27. exd5 {[%clk 0:00:38]}  Rxc7 {[%clk 0:00:40]} 28. dxe6 {[%clk 0:00:36]}  Kf8 {[%clk 0:00:31]} 29. Nd6 {[%clk 0:00:28]}  Ke7 {[%clk 0:00:30]} 30. Ne4 {[%clk 0:00:24]}  Be3 {[%clk 0:00:28]} 31. Re1 {[%clk 0:00:23]}  Bf4 {[%clk 0:00:27]} 32. Nf2 {[%clk 0:00:14]}  Bg3 {[%clk 0:00:26]} 33. Kg1 {[%clk 0:00:14]}  Rc2 {[%clk 0:00:25]} 34. Rf1 {[%clk 0:00:11]}  Bxf2+ {[%clk 0:00:25]} 35. Rxf2 {[%clk 0:00:11]}  Rxf2 {[%clk 0:00:25]} 36. Kxf2 {[%clk 0:00:11]}  Kxe6 {[%clk 0:00:26]} 0-1


[Site "https://www.chess.com"]

[Event "Titled Tuesday Blitz October 11 Late 2022"]
[White "Carlsen, Magnus"]
[Black "Riehle, Marco"]
[WhiteFideId "1503014"]
[BlackFideId "12904392"]
[WhiteElo "2830"]
[BlackElo "2462"]
[Result "1-0"]
[Round "05"]
[TimeControl "180+1"]
[Date "2022.10.11"]
[WhiteClock "0:01:36"]
[BlackClock "0:00:02"]

1. g4 {[%clk 0:03:00]}  d5 {[%clk 0:02:50]} 2. h3 {[%clk 0:02:59]}  c5 {[%clk 0:02:50]} 3. Bg2 {[%clk 0:02:59]}  Nc6 {[%clk 0:02:49]} 4. d3 {[%clk 0:02:59]}  e5 {[%clk 0:02:48]} 5. Nc3 {[%clk 0:02:58]}  Be6 {[%clk 0:02:48]} 6. Nf3 {[%clk 0:02:54]}  f6 {[%clk 0:02:47]} 7. a3 {[%clk 0:02:53]}  Nge7 {[%clk 0:02:38]} 8. Rb1 {[%clk 0:02:53]}  d4 {[%clk 0:02:37]} 9. Ne4 {[%clk 0:02:52]}  Nd5 {[%clk 0:02:37]} 10. c4 {[%clk 0:02:52]}  dxc3 {[%clk 0:02:37]} 11. bxc3 {[%clk 0:02:51]}  Qd7 {[%clk 0:02:35]} 12. c4 {[%clk 0:02:51]}  Nb6 {[%clk 0:02:33]} 13. Be3 {[%clk 0:02:49]}  Nd4 {[%clk 0:02:31]} 14. Nxd4 {[%clk 0:02:45]}  cxd4 {[%clk 0:02:31]} 15. Bd2 {[%clk 0:02:37]}  Be7 {[%clk 0:02:23]} 16. a4 {[%clk 0:02:35]}  Rb8 {[%clk 0:02:15]} 17. a5 {[%clk 0:02:34]}  Nc8 {[%clk 0:01:52]} 18. f4 {[%clk 0:02:31]}  O-O {[%clk 0:01:15]} 19. f5 {[%clk 0:02:30]}  Bf7 {[%clk 0:01:14]} 20. O-O {[%clk 0:02:31]}  a6 {[%clk 0:01:02]} 21. Qb3 {[%clk 0:02:27]}  Na7 {[%clk 0:01:00]} 22. Rb2 {[%clk 0:02:19]}  Nc6 {[%clk 0:00:57]} 23. Rfb1 {[%clk 0:02:20]}  Rfc8 {[%clk 0:00:57]} 24. Qd1 {[%clk 0:02:11]}  Qc7 {[%clk 0:00:51]} 25. Rb6 {[%clk 0:02:10]}  Bd8 {[%clk 0:00:48]} 26. Qe1 {[%clk 0:02:08]}  Qe7 {[%clk 0:00:44]} 27. R6b2 {[%clk 0:02:06]}  Bc7 {[%clk 0:00:40]} 28. Rxb7 {[%clk 0:02:04]}  Rxb7 {[%clk 0:00:40]} 29. Rxb7 {[%clk 0:02:04]}  Rb8 {[%clk 0:00:41]} 30. Nxf6+ {[%clk 0:01:51]}  gxf6 {[%clk 0:00:28]} 31. Bxc6 {[%clk 0:01:51]}  Rxb7 {[%clk 0:00:29]} 32. Bxb7 {[%clk 0:01:52]}  Bxa5 {[%clk 0:00:29]} 33. Bxa5 {[%clk 0:01:51]}  Qxb7 {[%clk 0:00:29]} 34. Bd8 {[%clk 0:01:51]}  Qc6 {[%clk 0:00:19]} 35. Qh4 {[%clk 0:01:51]}  e4 {[%clk 0:00:16]} 36. Qxf6 {[%clk 0:01:48]}  Qb7 {[%clk 0:00:05]} 37. Bb6 {[%clk 0:01:38]}  exd3 {[%clk 0:00:04]} 38. Qd8+ {[%clk 0:01:36]}  Kg7 {[%clk 0:00:04]} 39. Bxd4+ {[%clk 0:01:36]}  Kh6 {[%clk 0:00:03]} 40. Qh4+ {[%clk 0:01:35]}  Bh5 {[%clk 0:00:02]} 41. g5# {[%clk 0:01:36]} 1-0


[Site "https://www.chess.com"]

[Event "Titled Tuesday Blitz October 11 Late 2022"]
[White "De Souza, Cristiano Gomes"]
[Black "Fernandez De La Vara, Arnaldo"]
[WhiteFideId "2151758"]
[BlackFideId "3518388"]
[WhiteElo "2068"]
[BlackElo "2387"]
[Result "0-1"]
[Round "05"]
[TimeControl "180+1"]
[Date "2022.10.12"]
[WhiteClock "0:00:32"]
[BlackClock "0:00:05"]

1. d4 {[%clk 0:03:00]}  c5 {[%clk 0:03:00]} 2. d5 {[%clk 0:02:59]}  Nf6 {[%clk 0:03:01]} 3. c4 {[%clk 0:02:59]}  a6 {[%clk 0:03:02]} 4. Nc3 {[%clk 0:02:56]}  b5 {[%clk 0:03:02]} 5. cxb5 {[%clk 0:02:56]}  g6 {[%clk 0:03:03]} 6. e4 {[%clk 0:02:55]}  d6 {[%clk 0:03:03]} 7. Nf3 {[%clk 0:02:55]}  Bg7 {[%clk 0:03:04]} 8. h3 {[%clk 0:02:54]}  O-O {[%clk 0:03:04]} 9. Be3 {[%clk 0:02:53]}  axb5 {[%clk 0:03:02]} 10. Bxb5 {[%clk 0:02:53]}  Nxe4 {[%clk 0:03:02]} 11. Nxe4 {[%clk 0:02:46]}  Qa5+ {[%clk 0:03:02]} 12. Bd2 {[%clk 0:02:41]}  Qxb5 {[%clk 0:03:02]} 13. Bc3 {[%clk 0:02:40]}  Na6 {[%clk 0:02:13]} 14. Qe2 {[%clk 0:02:34]}  Qxe2+ {[%clk 0:02:00]} 15. Kxe2 {[%clk 0:02:34]}  Nb4 {[%clk 0:02:00]} 16. Bxg7 {[%clk 0:02:25]}  Kxg7 {[%clk 0:01:59]} 17. Nc3 {[%clk 0:02:25]}  Ba6+ {[%clk 0:01:53]} 18. Kd2 {[%clk 0:02:25]}  Bc4 {[%clk 0:01:38]} 19. Rhe1 {[%clk 0:02:19]}  Rfe8 {[%clk 0:01:36]} 20. a3 {[%clk 0:01:59]}  Nxd5 {[%clk 0:01:35]} 21. Re4 {[%clk 0:01:47]}  Bb3 {[%clk 0:01:31]} 22. Rae1 {[%clk 0:01:45]}  e5 {[%clk 0:01:23]} 23. Nxd5 {[%clk 0:01:38]}  Bxd5 {[%clk 0:01:24]} 24. R4e3 {[%clk 0:01:38]}  Reb8 {[%clk 0:00:43]} 25. Kc1 {[%clk 0:01:35]}  Ra6 {[%clk 0:00:27]} 26. Rd1 {[%clk 0:01:32]}  Be6 {[%clk 0:00:27]} 27. Ng5 {[%clk 0:01:17]}  Rab6 {[%clk 0:00:17]} 28. Nxe6+ {[%clk 0:01:15]}  fxe6 {[%clk 0:00:18]} 29. Re2 {[%clk 0:01:10]}  Kf6 {[%clk 0:00:18]} 30. Rc2 {[%clk 0:01:06]}  Ke7 {[%clk 0:00:14]} 31. f3 {[%clk 0:01:04]}  d5 {[%clk 0:00:12]} 32. Rxc5 {[%clk 0:00:51]}  Rxb2 {[%clk 0:00:12]} 33. Rc7+ {[%clk 0:00:51]}  Kd6 {[%clk 0:00:09]} 34. Rxh7 {[%clk 0:00:50]}  Rb1+ {[%clk 0:00:09]} 35. Kd2 {[%clk 0:00:49]}  R8b2+ {[%clk 0:00:10]} 36. Ke1 {[%clk 0:00:49]}  Rxd1+ {[%clk 0:00:07]} 37. Kxd1 {[%clk 0:00:49]}  Rxg2 {[%clk 0:00:06]} 38. Rg7 {[%clk 0:00:47]}  Rf2 {[%clk 0:00:06]} 39. Rxg6 {[%clk 0:00:46]}  Rxf3 {[%clk 0:00:06]} 40. h4 {[%clk 0:00:44]}  Rh3 {[%clk 0:00:05]} 41. Rh6 {[%clk 0:00:42]}  Rxa3 {[%clk 0:00:05]} 42. Rh8 {[%clk 0:00:42]}  Rh3 {[%clk 0:00:05]} 43. h5 {[%clk 0:00:42]}  e4 {[%clk 0:00:05]} 44. h6 {[%clk 0:00:43]}  Ke5 {[%clk 0:00:06]} 45. h7 {[%clk 0:00:43]}  Kd4 {[%clk 0:00:06]} 46. Ke2 {[%clk 0:00:40]}  Rh2+ {[%clk 0:00:06]} 47. Ke1 {[%clk 0:00:40]}  Ke3 {[%clk 0:00:06]} 48. Kf1 {[%clk 0:00:40]}  d4 {[%clk 0:00:07]} 49. Kg1 {[%clk 0:00:38]}  Rh6 {[%clk 0:00:07]} 50. Kf1 {[%clk 0:00:35]}  d3 {[%clk 0:00:07]} 51. Kg2 {[%clk 0:00:32]}  d2 {[%clk 0:00:05]} 0-1


[Site "https://www.chess.com"]

[Event "Titled Tuesday Blitz October 11 Late 2022"]
[White "Dilmukhametov, Artur"]
[Black "Dzierzak, Radoslaw"]
[WhiteFideId "24179922"]
[BlackFideId "1161407"]
[WhiteElo "2197"]
[BlackElo "2111"]
[Result "0-1"]
[Round "05"]
[TimeControl "180+1"]
[Date "2022.10.12"]
[WhiteClock "0:01:37"]
[BlackClock "0:01:10"]

1. e4 {[%clk 0:02:52]}  c5 {[%clk 0:02:59]} 2. Nf3 {[%clk 0:02:51]}  Nc6 {[%clk 0:03:00]} 3. c3 {[%clk 0:02:50]}  d5 {[%clk 0:02:59]} 4. exd5 {[%clk 0:02:50]}  Qxd5 {[%clk 0:03:00]} 5. d4 {[%clk 0:02:50]}  Bf5 {[%clk 0:02:59]} 6. Be3 {[%clk 0:02:43]}  e6 {[%clk 0:02:56]} 7. Be2 {[%clk 0:02:44]}  Nf6 {[%clk 0:02:52]} 8. O-O {[%clk 0:02:42]}  Rd8 {[%clk 0:02:47]} 9. dxc5 {[%clk 0:02:40]}  Bxc5 {[%clk 0:02:43]} 10. Qxd5 {[%clk 0:02:36]}  Rxd5 {[%clk 0:02:42]} 11. Bc4 {[%clk 0:02:36]}  Bxe3 {[%clk 0:02:26]} 12. Bxd5 {[%clk 0:02:35]}  Nxd5 {[%clk 0:02:27]} 13. fxe3 {[%clk 0:02:35]}  Nxe3 {[%clk 0:02:28]} 14. Na3 {[%clk 0:02:26]}  Nxf1 {[%clk 0:02:27]} 15. Rxf1 {[%clk 0:02:27]}  Ke7 {[%clk 0:02:23]} 16. Nb5 {[%clk 0:02:27]}  Rd8 {[%clk 0:02:19]} 17. Nbd4 {[%clk 0:02:25]}  Nxd4 {[%clk 0:02:18]} 18. Nxd4 {[%clk 0:02:26]}  Bg6 {[%clk 0:02:13]} 19. h3 {[%clk 0:02:24]}  e5 {[%clk 0:02:08]} 20. Re1 {[%clk 0:02:24]}  f6 {[%clk 0:02:08]} 21. Re2 {[%clk 0:02:23]}  a6 {[%clk 0:02:04]} 22. Nb3 {[%clk 0:02:20]}  b6 {[%clk 0:01:54]} 23. Nd2 {[%clk 0:02:19]}  Bd3 {[%clk 0:01:47]} 24. Rf2 {[%clk 0:02:16]}  f5 {[%clk 0:01:45]} 25. Nf3 {[%clk 0:02:15]}  Kf6 {[%clk 0:01:43]} 26. Rd2 {[%clk 0:02:07]}  g5 {[%clk 0:01:39]} 27. Kf2 {[%clk 0:02:07]}  e4 {[%clk 0:01:35]} 28. Nd4 {[%clk 0:02:06]}  f4 {[%clk 0:01:33]} 29. Rd1 {[%clk 0:01:48]}  Bc4 {[%clk 0:01:30]} 30. b3 {[%clk 0:01:43]}  e3+ {[%clk 0:01:28]} 31. Kg1 {[%clk 0:01:40]}  Bf7 {[%clk 0:01:26]} 32. Rf1 {[%clk 0:01:37]}  Rd6 {[%clk 0:01:10]} 0-1


[Site "https://www.chess.com"]

[Event "Titled Tuesday Blitz October 11 Late 2022"]
[White "Domingo Nunez, Ruben"]
[Black "Pakleza, Zbigniew"]
[WhiteFideId "22245570"]
[BlackFideId "1119290"]
[WhiteElo "2406"]
[BlackElo "2411"]
[Result "0-1"]
[Round "05"]
[TimeControl "180+1"]
[Date "2022.10.11"]
[WhiteClock "0:00:02"]
[BlackClock "0:00:04"]

1. e4 {[%clk 0:03:00]}  d6 {[%clk 0:03:00]} 2. d4 {[%clk 0:03:00]}  Nf6 {[%clk 0:03:00]} 3. Nc3 {[%clk 0:03:01]}  c6 {[%clk 0:03:01]} 4. a4 {[%clk 0:03:01]}  a5 {[%clk 0:02:58]} 5. Nge2 {[%clk 0:02:59]}  e5 {[%clk 0:02:56]} 6. h3 {[%clk 0:02:58]}  Nbd7 {[%clk 0:02:30]} 7. g4 {[%clk 0:02:50]}  g6 {[%clk 0:02:28]} 8. Bg2 {[%clk 0:02:50]}  Bg7 {[%clk 0:02:29]} 9. Be3 {[%clk 0:02:44]}  O-O {[%clk 0:02:15]} 10. O-O {[%clk 0:02:20]}  Re8 {[%clk 0:02:12]} 11. Ng3 {[%clk 0:02:14]}  exd4 {[%clk 0:01:22]} 12. Bxd4 {[%clk 0:02:15]}  Nc5 {[%clk 0:01:21]} 13. e5 {[%clk 0:01:38]}  Nd5 {[%clk 0:01:14]} 14. Nxd5 {[%clk 0:01:16]}  cxd5 {[%clk 0:01:15]} 15. exd6 {[%clk 0:01:17]}  Qxd6 {[%clk 0:00:55]} 16. Bxg7 {[%clk 0:01:16]}  Kxg7 {[%clk 0:00:56]} 17. Qxd5 {[%clk 0:01:17]}  Qxd5 {[%clk 0:00:49]} 18. Bxd5 {[%clk 0:01:18]}  Be6 {[%clk 0:00:40]} 19. Rfd1 {[%clk 0:01:17]}  Rac8 {[%clk 0:00:37]} 20. Ra3 {[%clk 0:01:08]}  b6 {[%clk 0:00:35]} 21. Bxe6 {[%clk 0:00:36]}  Nxe6 {[%clk 0:00:34]} 22. Rd2 {[%clk 0:00:35]}  Nf4 {[%clk 0:00:30]} 23. Kh2 {[%clk 0:00:30]}  Rc4 {[%clk 0:00:29]} 24. Re3 {[%clk 0:00:20]}  Rxe3 {[%clk 0:00:15]} 25. fxe3 {[%clk 0:00:21]}  Ne6 {[%clk 0:00:16]} 26. b3 {[%clk 0:00:21]}  Rc3 {[%clk 0:00:15]} 27. Nf1 {[%clk 0:00:18]}  Ng5 {[%clk 0:00:12]} 28. Kg2 {[%clk 0:00:17]}  Ne4 {[%clk 0:00:12]} 29. Re2 {[%clk 0:00:17]}  Kf6 {[%clk 0:00:11]} 30. Ng3 {[%clk 0:00:15]}  Nc5 {[%clk 0:00:09]} 31. Kf3 {[%clk 0:00:15]}  Ke5 {[%clk 0:00:08]} 32. Rd2 {[%clk 0:00:15]}  Ne6 {[%clk 0:00:03]} 33. h4 {[%clk 0:00:11]}  f5 {[%clk 0:00:02]} 34. gxf5 {[%clk 0:00:12]}  gxf5 {[%clk 0:00:03]} 35. Ne2 {[%clk 0:00:12]}  Rc7 {[%clk 0:00:03]} 36. Nd4 {[%clk 0:00:12]}  Nc5 {[%clk 0:00:02]} 37. Nb5 {[%clk 0:00:11]}  Rg7 {[%clk 0:00:02]} 38. Nc3 {[%clk 0:00:06]}  Rg4 {[%clk 0:00:02]} 39. Rd5+ {[%clk 0:00:07]}  Ke6 {[%clk 0:00:02]} 40. Rd8 {[%clk 0:00:07]}  Rxh4 {[%clk 0:00:02]} 41. Rb8 {[%clk 0:00:05]}  Nd7 {[%clk 0:00:02]} 42. Re8+ {[%clk 0:00:04]}  Kf7 {[%clk 0:00:02]} 43. Rd8 {[%clk 0:00:04]}  Ke7 {[%clk 0:00:03]} 44. Rh8 {[%clk 0:00:03]}  Ne5+ {[%clk 0:00:02]} 45. Ke2 {[%clk 0:00:03]}  Rh2+ {[%clk 0:00:02]} 46. Kd1 {[%clk 0:00:04]}  Rh1+ {[%clk 0:00:02]} 47. Kd2 {[%clk 0:00:04]}  Rh2+ {[%clk 0:00:03]} 48. Kd1 {[%clk 0:00:04]}  Kf6 {[%clk 0:00:03]} 49. Nd5+ {[%clk 0:00:04]}  Kg7 {[%clk 0:00:03]} 50. Re8 {[%clk 0:00:04]}  Rh1+ {[%clk 0:00:03]} 51. Ke2 {[%clk 0:00:03]}  Rh2+ {[%clk 0:00:02]} 52. Kd1 {[%clk 0:00:04]}  Ng4 {[%clk 0:00:02]} 53. Nxb6 {[%clk 0:00:03]}  h5 {[%clk 0:00:03]} 54. b4 {[%clk 0:00:02]}  axb4 {[%clk 0:00:02]} 55. a5 {[%clk 0:00:02]}  Rh1+ {[%clk 0:00:03]} 56. Ke2 {[%clk 0:00:01]}  Ra1 {[%clk 0:00:04]} 57. Nc4 {[%clk 0:00:01]}  h4 {[%clk 0:00:04]} 58. Kf3 {[%clk 0:00:02]}  h3 {[%clk 0:00:04]} 0-1


[Site "https://www.chess.com"]